[Event "Early-Titled-Tuesday-Blitz-November-28-2023"]
[Site "Chess.com"]
[Date "2023.11.28"]
[Round "8"]
[White "NovoselovRoman"]
[Black "Ron_Weasley_Chess"]
[Result "1-0"]
[WhiteElo "2554"]
[BlackElo "2413"]
[TimeControl "180+1"]
[EndTime "9:36:48 PST"]
[Termination "NovoselovRoman won by checkmate"]

1. e4 {[%clk 0:02:59.4]} 1... c6 {[%clk 0:03:00.3]} 2. d4 {[%clk 0:02:59]} 2...
d5 {[%clk 0:03:00.8]} 3. Nc3 {[%clk 0:02:59.9]} 3... dxe4 {[%clk 0:03:01.2]} 4.
Nxe4 {[%clk 0:03:00.8]} 4... Nf6 {[%clk 0:03:02.1]} 5. Ng3 {[%clk 0:03:00.8]}
5... h5 {[%clk 0:03:01.9]} 6. h4 {[%clk 0:02:59.7]} 6... e6 {[%clk 0:02:58.5]}
7. Nf3 {[%clk 0:02:57.1]} 7... Bd6 {[%clk 0:02:57.5]} 8. Bd3 {[%clk 0:02:56.4]}
8... Qc7 {[%clk 0:02:54.8]} 9. Ne4 {[%clk 0:02:51]} 9... Be7 {[%clk 0:02:46.1]}
10. Bg5 {[%clk 0:02:44.4]} 10... Nbd7 {[%clk 0:02:45.2]} 11. Nxf6+ {[%clk
0:02:39.6]} 11... Bxf6 {[%clk 0:02:46.1]} 12. Bxf6 {[%clk 0:02:38.2]} 12... Nxf6
{[%clk 0:02:47]} 13. Qe2 {[%clk 0:02:37.3]} 13... Bd7 {[%clk 0:02:36.5]} 14. Ne5
{[%clk 0:02:35.3]} 14... Nd5 {[%clk 0:02:34.4]} 15. O-O-O {[%clk 0:02:23.9]}
15... O-O-O {[%clk 0:02:28]} 16. Be4 {[%clk 0:02:14]} 16... Kb8 {[%clk
0:02:24.4]} 17. Kb1 {[%clk 0:02:10.5]} 17... Rhf8 {[%clk 0:02:19.3]} 18. Bxd5
{[%clk 0:02:09.4]} 18... exd5 {[%clk 0:02:20.2]} 19. Qxh5 {[%clk 0:02:09.7]}
19... Be6 {[%clk 0:02:16.3]} 20. f4 {[%clk 0:02:00.7]} 20... Qc8 {[%clk
0:02:04.3]} 21. Rdf1 {[%clk 0:01:34.3]} 21... f6 {[%clk 0:01:55]} 22. Nd3 {[%clk
0:01:33.6]} 22... Bf5 {[%clk 0:01:51.6]} 23. Nc5 {[%clk 0:01:19.8]} 23... b6
{[%clk 0:01:48.2]} 24. Nb3 {[%clk 0:01:17]} 24... Be4 {[%clk 0:01:36.7]} 25. Qe2
{[%clk 0:01:14.2]} 25... Rfe8 {[%clk 0:01:35.5]} 26. Rhg1 {[%clk 0:01:03]} 26...
a5 {[%clk 0:01:30.5]} 27. a4 {[%clk 0:00:55.9]} 27... Bf5 {[%clk 0:01:23.1]} 28.
Qd2 {[%clk 0:00:52.2]} 28... Qa6 {[%clk 0:01:22.9]} 29. Re1 {[%clk 0:00:49.6]}
29... Qc4 {[%clk 0:01:22.8]} 30. g4 {[%clk 0:00:22.9]} 30... Be4 {[%clk
0:01:07.2]} 31. Qc3 {[%clk 0:00:22.8]} 31... Qxa4 {[%clk 0:01:03.9]} 32. Nd2
{[%clk 0:00:22.2]} 32... Kb7 {[%clk 0:00:56.3]} 33. b3 {[%clk 0:00:21.8]} 33...
Qb5 {[%clk 0:00:50.2]} 34. Re3 {[%clk 0:00:21.8]} 34... a4 {[%clk 0:00:45.1]}
35. Rge1 {[%clk 0:00:21.8]} 35... axb3 {[%clk 0:00:44.4]} 36. Qxb3 {[%clk
0:00:22.2]} 36... Qxb3+ {[%clk 0:00:43.1]} 37. Nxb3 {[%clk 0:00:23.1]} 37... Re7
{[%clk 0:00:40.2]} 38. Kb2 {[%clk 0:00:18.6]} 38... Rde8 {[%clk 0:00:29.5]} 39.
Nd2 {[%clk 0:00:18.6]} 39... Re6 {[%clk 0:00:24.8]} 40. h5 {[%clk 0:00:18.3]}
40... Bf5 {[%clk 0:00:23.5]} 41. Rxe6 {[%clk 0:00:15]} 41... Rxe6 {[%clk
0:00:24.4]} 42. Rxe6 {[%clk 0:00:15]} 42... Bxe6 {[%clk 0:00:25.3]} 43. g5
{[%clk 0:00:15.2]} 43... Bg4 {[%clk 0:00:18.9]} 44. h6 {[%clk 0:00:14.7]} 44...
gxh6 {[%clk 0:00:18.8]} 45. gxh6 {[%clk 0:00:15]} 45... Bf5 {[%clk 0:00:19.1]}
46. Nf3 {[%clk 0:00:15.4]} 46... Kc7 {[%clk 0:00:19.8]} 47. Nh4 {[%clk
0:00:15.6]} 47... Bh7 {[%clk 0:00:20.2]} 48. f5 {[%clk 0:00:11.5]} 48... Kd7
{[%clk 0:00:20.7]} 49. Ng6 {[%clk 0:00:12]} 49... Ke8 {[%clk 0:00:21.3]} 50. Kb3
{[%clk 0:00:09.9]} 50... Kf7 {[%clk 0:00:21.2]} 51. Nh4 {[%clk 0:00:10.4]} 51...
Ke7 {[%clk 0:00:14.1]} 52. c4 {[%clk 0:00:10]} 52... Bg8 {[%clk 0:00:13.3]} 53.
cxd5 {[%clk 0:00:09.4]} 53... Bxd5+ {[%clk 0:00:13.8]} 54. Kb4 {[%clk
0:00:09.8]} 54... Bg8 {[%clk 0:00:14.7]} 55. Ng6+ {[%clk 0:00:09.7]} 55... Ke8
{[%clk 0:00:13]} 56. Nf4 {[%clk 0:00:09.8]} 56... Kd7 {[%clk 0:00:12.5]} 57. Ne6
{[%clk 0:00:09.3]} 57... Bh7 {[%clk 0:00:11.7]} 58. Nf8+ {[%clk 0:00:07.7]}
58... Ke7 {[%clk 0:00:11.5]} 59. Nxh7 {[%clk 0:00:08.6]} 59... Kf7 {[%clk
0:00:11.4]} 60. Kc4 {[%clk 0:00:08]} 60... Ke7 {[%clk 0:00:12]} 61. d5 {[%clk
0:00:08.2]} 61... b5+ {[%clk 0:00:11.7]} 62. Kc5 {[%clk 0:00:08.1]} 62... cxd5
{[%clk 0:00:12]} 63. Kxd5 {[%clk 0:00:08.5]} 63... Kf7 {[%clk 0:00:12.2]} 64.
Kc5 {[%clk 0:00:07.5]} 64... Ke7 {[%clk 0:00:11.5]} 65. Kxb5 {[%clk 0:00:07.7]}
65... Kf7 {[%clk 0:00:12]} 66. Kc5 {[%clk 0:00:08.1]} 66... Ke7 {[%clk
0:00:12.5]} 67. Kd5 {[%clk 0:00:08.3]} 67... Kf7 {[%clk 0:00:13.4]} 68. Kd6
{[%clk 0:00:07.7]} 68... Kg8 {[%clk 0:00:14]} 69. Nxf6+ {[%clk 0:00:07.9]} 69...
Kf7 {[%clk 0:00:14.9]} 70. Ke5 {[%clk 0:00:08.2]} 70... Kf8 {[%clk 0:00:15.1]}
71. Nh5 {[%clk 0:00:08.2]} 71... Kg8 {[%clk 0:00:15.4]} 72. Ke6 {[%clk
0:00:08.7]} 72... Kh7 {[%clk 0:00:16.3]} 73. Ke7 {[%clk 0:00:08.8]} 73... Kg8
{[%clk 0:00:15.9]} 74. f6 {[%clk 0:00:09]} 74... Kh7 {[%clk 0:00:16.8]} 75. f7
{[%clk 0:00:08.7]} 75... Kxh6 {[%clk 0:00:16.7]} 76. f8=Q+ {[%clk 0:00:08.5]}
76... Kg5 {[%clk 0:00:17.6]} 77. Qf6+ {[%clk 0:00:08.4]} 77... Kxh5 {[%clk
0:00:17.8]} 78. Qg7 {[%clk 0:00:08.4]} 78... Kh4 {[%clk 0:00:17.8]} 79. Qg2
{[%clk 0:00:08.7]} 79... Kh5 {[%clk 0:00:17.9]} 80. Kf6 {[%clk 0:00:08.6]} 80...
Kh6 {[%clk 0:00:18.8]} 81. Qg6# {[%clk 0:00:08.6]} 1-0

[Event "Early-Titled-Tuesday-Blitz-November-28-2023"]
[Site "Chess.com"]
[Date "2023.11.28"]
[Round "8"]
[White "Roman_Ovetchkin"]
[Black "HATilay"]
[Result "0-1"]
[WhiteElo "2645"]
[BlackElo "2530"]
[TimeControl "180+1"]
[EndTime "9:36:49 PST"]
[Termination "HATilay won on time"]

1. e4 {[%clk 0:03:00.9]} 1... c5 {[%clk 0:02:59.9]} 2. Nf3 {[%clk 0:03:00.8]}
2... e6 {[%clk 0:03:00.4]} 3. d4 {[%clk 0:02:59.7]} 3... cxd4 {[%clk 0:03:01.1]}
4. Nxd4 {[%clk 0:03:00.5]} 4... a6 {[%clk 0:03:01.7]} 5. Bd3 {[%clk 0:02:58.9]}
5... Bc5 {[%clk 0:03:02]} 6. Nb3 {[%clk 0:02:57.1]} 6... Ba7 {[%clk 0:03:02.3]}
7. Qg4 {[%clk 0:02:55.8]} 7... Nf6 {[%clk 0:03:02.3]} 8. Qg3 {[%clk 0:02:55.4]}
8... d6 {[%clk 0:03:02.8]} 9. Nc3 {[%clk 0:02:53.7]} 9... b5 {[%clk 0:02:57.9]}
10. O-O {[%clk 0:02:52.5]} 10... O-O {[%clk 0:02:49.6]} 11. Bh6 {[%clk
0:02:38.9]} 11... Ne8 {[%clk 0:02:44.2]} 12. Rad1 {[%clk 0:02:37.9]} 12... Nc6
{[%clk 0:02:28.1]} 13. Kh1 {[%clk 0:02:34.7]} 13... Kh8 {[%clk 0:02:28]} 14. Bg5
{[%clk 0:02:33.5]} 14... f6 {[%clk 0:02:26.8]} 15. Bc1 {[%clk 0:02:28.2]} 15...
b4 {[%clk 0:02:19.1]} 16. Ne2 {[%clk 0:02:22.9]} 16... a5 {[%clk 0:02:09]} 17.
f4 {[%clk 0:02:20]} 17... a4 {[%clk 0:02:08.4]} 18. Nd2 {[%clk 0:02:20]} 18...
f5 {[%clk 0:01:38.1]} 19. exf5 {[%clk 0:01:49.3]} 19... exf5 {[%clk 0:01:36.1]}
20. Bb5 {[%clk 0:01:32.4]} 20... Bb7 {[%clk 0:01:26.8]} 21. Nc4 {[%clk 0:01:32]}
21... Na5 {[%clk 0:01:02]} 22. Bxe8 {[%clk 0:01:15.2]} 22... Nxc4 {[%clk
0:00:56.6]} 23. Bb5 {[%clk 0:01:11.5]} 23... Nb6 {[%clk 0:00:22.5]} 24. Nd4
{[%clk 0:01:06.2]} 24... Qf6 {[%clk 0:00:20.7]} 25. Be3 {[%clk 0:00:54]} 25...
Be4 {[%clk 0:00:21]} 26. Nc6 {[%clk 0:00:50.6]} 26... Bxc6 {[%clk 0:00:09.8]}
27. Bxc6 {[%clk 0:00:49.3]} 27... Rac8 {[%clk 0:00:10.3]} 28. Bd4 {[%clk
0:00:48.9]} 28... Qf7 {[%clk 0:00:09.8]} 29. Qf3 {[%clk 0:00:42.4]} 29... Rc7
{[%clk 0:00:07.7]} 30. Bxb6 {[%clk 0:00:38.8]} 30... Bxb6 {[%clk 0:00:07.5]} 31.
Bxa4 {[%clk 0:00:39.5]} 31... Bc5 {[%clk 0:00:05.8]} 32. Bb3 {[%clk 0:00:40]}
32... Qf6 {[%clk 0:00:06.1]} 33. Rd5 {[%clk 0:00:33.5]} 33... Re7 {[%clk
0:00:06.3]} 34. Qd3 {[%clk 0:00:32.6]} 34... g6 {[%clk 0:00:05.2]} 35. c3 {[%clk
0:00:31.7]} 35... bxc3 {[%clk 0:00:05]} 36. Qxc3 {[%clk 0:00:30.8]} 36... Qxc3
{[%clk 0:00:05.2]} 37. bxc3 {[%clk 0:00:31]} 37... Ra8 {[%clk 0:00:05.2]} 38.
Rd3 {[%clk 0:00:28.3]} 38... Kg7 {[%clk 0:00:05.6]} 39. Rd2 {[%clk 0:00:26.5]}
39... Kf6 {[%clk 0:00:06.1]} 40. g3 {[%clk 0:00:26.3]} 40... Re3 {[%clk
0:00:06.6]} 41. Rc2 {[%clk 0:00:26.3]} 41... Rc8 {[%clk 0:00:06.2]} 42. Kg2
{[%clk 0:00:26.4]} 42... Bb6 {[%clk 0:00:05.8]} 43. c4 {[%clk 0:00:26.4]} 43...
Bc5 {[%clk 0:00:06.2]} 44. Rd1 {[%clk 0:00:26.1]} 44... Rce8 {[%clk 0:00:06.4]}
45. Rcd2 {[%clk 0:00:22.7]} 45... R8e7 {[%clk 0:00:06.6]} 46. Kh3 {[%clk
0:00:20]} 46... R7e6 {[%clk 0:00:06.2]} 47. Kh4 {[%clk 0:00:19]} 47... h6 {[%clk
0:00:06.1]} 48. Kh3 {[%clk 0:00:19.2]} 48... g5 {[%clk 0:00:06.1]} 49. fxg5+
{[%clk 0:00:18.5]} 49... hxg5 {[%clk 0:00:06.6]} 50. Kg2 {[%clk 0:00:18.9]}
50... f4 {[%clk 0:00:06.2]} 51. gxf4 {[%clk 0:00:18.1]} 51... gxf4 {[%clk
0:00:06.7]} 52. Rf1 {[%clk 0:00:16.6]} 52... R6e4 {[%clk 0:00:01.6]} 53. Bd1
{[%clk 0:00:14.8]} 53... Ke5 {[%clk 0:00:01.3]} 54. Rd5+ {[%clk 0:00:14.5]}
54... Ke6 {[%clk 0:00:01.4]} 55. Rh5 {[%clk 0:00:14.4]} 55... Rxc4 {[%clk
0:00:01.3]} 56. Bb3 {[%clk 0:00:12.4]} 56... Rxb3 {[%clk 0:00:01.9]} 57. axb3
{[%clk 0:00:12.2]} 57... Rc2+ {[%clk 0:00:02.5]} 58. Kf3 {[%clk 0:00:12]} 58...
Be3 {[%clk 0:00:03.1]} 59. Rd1 {[%clk 0:00:10]} 59... Rc3 {[%clk 0:00:01.4]} 60.
Ke4 {[%clk 0:00:10.2]} 60... Rxb3 {[%clk 0:00:01.4]} 61. Rh6+ {[%clk 0:00:10.6]}
61... Ke7 {[%clk 0:00:01.9]} 62. Rhxd6 {[%clk 0:00:10.5]} 62... Rb4+ {[%clk
0:00:02.4]} 63. Kf3 {[%clk 0:00:10.3]} 63... Rb3 {[%clk 0:00:02.9]} 64. R1d3
{[%clk 0:00:09.6]} 64... Rxd3 {[%clk 0:00:02.4]} 65. Rxd3 {[%clk 0:00:08.8]}
65... Kf6 {[%clk 0:00:03]} 66. Kg4 {[%clk 0:00:08.3]} 66... Kg6 {[%clk
0:00:03.5]} 67. Rd6+ {[%clk 0:00:08.1]} 67... Kf7 {[%clk 0:00:04.1]} 68. h3
{[%clk 0:00:08.1]} 68... Ke7 {[%clk 0:00:04.2]} 69. Ra6 {[%clk 0:00:07.4]} 69...
Kf7 {[%clk 0:00:04.6]} 70. h4 {[%clk 0:00:07.4]} 70... Kg7 {[%clk 0:00:05.3]}
71. Rc6 {[%clk 0:00:06.1]} 71... Bd2 {[%clk 0:00:04.8]} 72. Re6 {[%clk
0:00:04.9]} 72... Be3 {[%clk 0:00:05.1]} 73. Kf5 {[%clk 0:00:04.4]} 73... Bc1
{[%clk 0:00:03.8]} 74. Re1 {[%clk 0:00:03.9]} 74... Bd2 {[%clk 0:00:03.7]} 75.
Re6 {[%clk 0:00:03.2]} 75... f3 {[%clk 0:00:02.4]} 76. Rg6+ {[%clk 0:00:01.4]}
76... Kh7 {[%clk 0:00:02.4]} 77. Rf6 {[%clk 0:00:01.2]} 77... f2 {[%clk
0:00:02.6]} 78. Kg4 {[%clk 0:00:01.3]} 78... Be3 {[%clk 0:00:02.8]} 0-1

[Event "Early-Titled-Tuesday-Blitz-November-28-2023"]
[Site "Chess.com"]
[Date "2023.11.28"]
[Round "8"]
[White "Goffredo_Fofi"]
[Black "Burovic00"]
[Result "1/2-1/2"]
[WhiteElo "2469"]
[BlackElo "2555"]
[TimeControl "180+1"]
[EndTime "9:36:54 PST"]
[Termination "Game drawn by repetition"]

1. d4 {[%clk 0:03:00.9]} 1... d6 {[%clk 0:03:00.2]} 2. Bf4 {[%clk 0:02:59]} 2...
g6 {[%clk 0:03:00.3]} 3. Nc3 {[%clk 0:02:58.2]} 3... Bg7 {[%clk 0:03:00.1]} 4.
Nf3 {[%clk 0:02:58.4]} 4... a6 {[%clk 0:03:00.1]} 5. Qd2 {[%clk 0:02:49.3]} 5...
b5 {[%clk 0:03:00]} 6. h4 {[%clk 0:02:48.1]} 6... h6 {[%clk 0:02:59.9]} 7. e4
{[%clk 0:02:39.2]} 7... Bb7 {[%clk 0:02:59.9]} 8. Bd3 {[%clk 0:02:38.8]} 8...
Nd7 {[%clk 0:02:57.1]} 9. Ne2 {[%clk 0:02:37]} 9... e5 {[%clk 0:02:41]} 10. dxe5
{[%clk 0:02:25.9]} 10... dxe5 {[%clk 0:02:40.8]} 11. Be3 {[%clk 0:02:26.1]}
11... Ngf6 {[%clk 0:02:35.4]} 12. Ng3 {[%clk 0:02:25.3]} 12... Ng4 {[%clk
0:02:35.5]} 13. h5 {[%clk 0:02:21.3]} 13... Nxe3 {[%clk 0:02:29.6]} 14. Qxe3
{[%clk 0:02:22.2]} 14... Qf6 {[%clk 0:02:27.1]} 15. a4 {[%clk 0:02:11.1]} 15...
b4 {[%clk 0:02:08.5]} 16. a5 {[%clk 0:02:00.4]} 16... g5 {[%clk 0:01:46.9]} 17.
Nf5 {[%clk 0:01:44.6]} 17... Bf8 {[%clk 0:01:47.2]} 18. Nh2 {[%clk 0:01:42.7]}
18... Bc5 {[%clk 0:01:46.9]} 19. Qe2 {[%clk 0:01:42.5]} 19... O-O-O {[%clk
0:01:24.2]} 20. Ng4 {[%clk 0:01:41.2]} 20... Qc6 {[%clk 0:01:24.3]} 21. f3
{[%clk 0:01:07.1]} 21... Kb8 {[%clk 0:01:22.8]} 22. Bc4 {[%clk 0:01:06.7]} 22...
Bd4 {[%clk 0:00:50.5]} 23. Nxd4 {[%clk 0:00:43.6]} 23... exd4 {[%clk 0:00:50.6]}
24. Bxf7 {[%clk 0:00:38]} 24... Nc5 {[%clk 0:00:42.9]} 25. Bc4 {[%clk
0:00:35.4]} 25... b3 {[%clk 0:00:30.4]} 26. Ne5 {[%clk 0:00:32.5]} 26... Qf6
{[%clk 0:00:23.3]} 27. Nf7 {[%clk 0:00:32.1]} 27... bxc2 {[%clk 0:00:21.7]} 28.
Qxc2 {[%clk 0:00:20.7]} 28... d3 {[%clk 0:00:19.2]} 29. Qd2 {[%clk 0:00:20.8]}
29... Qd4 {[%clk 0:00:17.1]} 30. Rc1 {[%clk 0:00:20.2]} 30... Nxe4 {[%clk
0:00:14.6]} 31. fxe4 {[%clk 0:00:13.1]} 31... Qxe4+ {[%clk 0:00:15.5]} 32. Kf1
{[%clk 0:00:12.2]} 32... Rhf8 {[%clk 0:00:15.5]} 33. Kg1 {[%clk 0:00:12.4]}
33... Qd4+ {[%clk 0:00:14.2]} 34. Kh2 {[%clk 0:00:12]} 34... Qh4+ {[%clk
0:00:13.8]} 35. Kg1 {[%clk 0:00:11.6]} 35... Qd4+ {[%clk 0:00:14.7]} 36. Qf2
{[%clk 0:00:07.7]} 36... Qxf2+ {[%clk 0:00:13.8]} 37. Kxf2 {[%clk 0:00:08.6]}
37... Bd5 {[%clk 0:00:14.3]} 38. Bxd5 {[%clk 0:00:06.6]} 38... Rxd5 {[%clk
0:00:15.2]} 39. Rhf1 {[%clk 0:00:05.7]} 39... Rxf7+ {[%clk 0:00:15.4]} 40. Ke3
{[%clk 0:00:06.6]} 40... Re7+ {[%clk 0:00:14.5]} 41. Kd2 {[%clk 0:00:05.8]}
41... Re2+ {[%clk 0:00:13.9]} 42. Kd1 {[%clk 0:00:06.6]} 42... Rxb2 {[%clk
0:00:13.1]} 43. Rf8+ {[%clk 0:00:07.1]} 43... Kb7 {[%clk 0:00:12.3]} 44. Rf7
{[%clk 0:00:07.8]} 44... Rc2 {[%clk 0:00:10.1]} 45. Rxc2 {[%clk 0:00:07.6]}
45... dxc2+ {[%clk 0:00:11]} 46. Kxc2 {[%clk 0:00:08.5]} 46... Rxa5 {[%clk
0:00:11.3]} 47. Rf6 {[%clk 0:00:09]} 47... Ra2+ {[%clk 0:00:11.3]} 48. Kb3
{[%clk 0:00:09.6]} 48... Rxg2 {[%clk 0:00:12.2]} 49. Rxh6 {[%clk 0:00:10]} 49...
Rh2 {[%clk 0:00:12.8]} 50. Rh8 {[%clk 0:00:10]} 50... g4 {[%clk 0:00:11.9]} 51.
h6 {[%clk 0:00:09.7]} 51... Rh3+ {[%clk 0:00:12.1]} 52. Kb4 {[%clk 0:00:09.7]}
52... g3 {[%clk 0:00:10]} 53. h7 {[%clk 0:00:09.4]} 53... g2 {[%clk 0:00:07.7]}
54. Rg8 {[%clk 0:00:09.8]} 54... Rh4+ {[%clk 0:00:08.6]} 55. Kc5 {[%clk
0:00:08.4]} 55... Rxh7 {[%clk 0:00:09.5]} 56. Rxg2 {[%clk 0:00:08.8]} 56... Rh5+
{[%clk 0:00:10.1]} 57. Kb4 {[%clk 0:00:09.1]} 57... Kb6 {[%clk 0:00:10.8]} 58.
Rg6+ {[%clk 0:00:08.7]} 58... c6 {[%clk 0:00:10]} 59. Rf6 {[%clk 0:00:08.9]}
59... Rh4+ {[%clk 0:00:10.4]} 60. Kb3 {[%clk 0:00:08.8]} 60... Kb5 {[%clk
0:00:10.6]} 61. Rf8 {[%clk 0:00:08.6]} 61... Rh3+ {[%clk 0:00:10.7]} 62. Kb2
{[%clk 0:00:08]} 62... c5 {[%clk 0:00:07.7]} 63. Rb8+ {[%clk 0:00:07]} 63... Kc4
{[%clk 0:00:06.6]} 64. Ra8 {[%clk 0:00:07.4]} 64... Rh2+ {[%clk 0:00:06.8]} 65.
Ka3 {[%clk 0:00:06.9]} 65... Kc3 {[%clk 0:00:05.7]} 66. Rxa6 {[%clk 0:00:06.1]}
66... c4 {[%clk 0:00:04.2]} 67. Rg6 {[%clk 0:00:03.9]} 67... Rh3 {[%clk
0:00:03.2]} 68. Ka2 {[%clk 0:00:03.5]} 68... Rd3 {[%clk 0:00:03]} 69. Ka3 {[%clk
0:00:03.1]} 69... Kc2+ {[%clk 0:00:02.5]} 70. Ka2 {[%clk 0:00:01.3]} 70... c3
{[%clk 0:00:02.7]} 71. Rg2+ {[%clk 0:00:01.3]} 71... Rd2 {[%clk 0:00:03.6]} 72.
Rg1 {[%clk 0:00:01.8]} 72... Kd3+ {[%clk 0:00:03.1]} 73. Kb3 {[%clk 0:00:01.9]}
73... Rb2+ {[%clk 0:00:03.1]} 74. Ka3 {[%clk 0:00:02.5]} 74... Rb8 {[%clk
0:00:03.8]} 75. Ka2 {[%clk 0:00:03]} 75... Ra8+ {[%clk 0:00:03]} 76. Kb1 {[%clk
0:00:03]} 76... c2+ {[%clk 0:00:03.5]} 77. Kb2 {[%clk 0:00:03.3]} 77... Rb8+
{[%clk 0:00:04]} 78. Ka2 {[%clk 0:00:03.8]} 78... Kc3 {[%clk 0:00:02.9]} 79.
Rg3+ {[%clk 0:00:04]} 79... Kc4 {[%clk 0:00:02.9]} 80. Rg1 {[%clk 0:00:04.3]}
80... Kc3 {[%clk 0:00:02.2]} 81. Rg3+ {[%clk 0:00:04.6]} 81... Kd2 {[%clk
0:00:02.5]} 82. Rg2+ {[%clk 0:00:05.2]} 82... Kd3 {[%clk 0:00:03.1]} 83. Rg1
{[%clk 0:00:05.8]} 83... Rc8 {[%clk 0:00:02.1]} 84. Kb2 {[%clk 0:00:05.6]} 84...
Rb8+ {[%clk 0:00:02.7]} 85. Ka2 {[%clk 0:00:06.2]} 1/2-1/2

[Event "Early-Titled-Tuesday-Blitz-November-28-2023"]
[Site "Chess.com"]
[Date "2023.11.28"]
[Round "8"]
[White "pinguino120"]
[Black "KononenkoD"]
[Result "0-1"]
[WhiteElo "2306"]
[BlackElo "2524"]
[TimeControl "180+1"]
[EndTime "9:36:54 PST"]
[Termination "KononenkoD won by resignation"]

1. e4 {[%clk 0:03:00.9]} 1... d5 {[%clk 0:02:59.7]} 2. exd5 {[%clk 0:02:59.8]}
2... Qxd5 {[%clk 0:03:00.6]} 3. Nc3 {[%clk 0:03:00.2]} 3... Qa5 {[%clk
0:03:00.9]} 4. d4 {[%clk 0:03:00.4]} 4... Nf6 {[%clk 0:03:01.1]} 5. Bd2 {[%clk
0:03:00.4]} 5... c6 {[%clk 0:03:00.8]} 6. Bc4 {[%clk 0:03:00.1]} 6... Qc7 {[%clk
0:02:59.8]} 7. Nf3 {[%clk 0:02:59.5]} 7... Bg4 {[%clk 0:02:59.1]} 8. h3 {[%clk
0:02:59.2]} 8... Bh5 {[%clk 0:02:58.3]} 9. g4 {[%clk 0:02:59.5]} 9... Bg6 {[%clk
0:02:58.6]} 10. Ne5 {[%clk 0:03:00]} 10... Nbd7 {[%clk 0:02:58.7]} 11. Bf4
{[%clk 0:02:52]} 11... Nxe5 {[%clk 0:02:54.6]} 12. dxe5 {[%clk 0:02:40.8]} 12...
e6 {[%clk 0:02:54.3]} 13. Qf3 {[%clk 0:02:32.7]} 13... Nd7 {[%clk 0:02:46.5]}
14. O-O-O {[%clk 0:02:14.7]} 14... Bb4 {[%clk 0:02:42.9]} 15. h4 {[%clk
0:02:05.4]} 15... h5 {[%clk 0:02:42.5]} 16. g5 {[%clk 0:01:50.4]} 16... Bf5
{[%clk 0:02:41.8]} 17. Qe3 {[%clk 0:01:43.7]} 17... Bc5 {[%clk 0:02:36.7]} 18.
Qe2 {[%clk 0:01:42.1]} 18... O-O-O {[%clk 0:02:32.3]} 19. f3 {[%clk 0:01:21.6]}
19... Nb6 {[%clk 0:02:27.4]} 20. Bb3 {[%clk 0:01:18.5]} 20... Rxd1+ {[%clk
0:02:24.6]} 21. Rxd1 {[%clk 0:01:19.4]} 21... Rd8 {[%clk 0:02:24.4]} 22. Rxd8+
{[%clk 0:01:14.7]} 22... Qxd8 {[%clk 0:02:24.2]} 23. Ne4 {[%clk 0:01:14.7]}
23... Bxe4 {[%clk 0:02:24.2]} 24. Qxe4 {[%clk 0:01:14.1]} 24... g6 {[%clk
0:02:23.4]} 25. Be3 {[%clk 0:01:12.8]} 25... Bxe3+ {[%clk 0:02:20.4]} 26. Qxe3
{[%clk 0:01:13.7]} 26... Kc7 {[%clk 0:02:15.2]} 27. Qf4 {[%clk 0:01:03]} 27...
Qd7 {[%clk 0:02:13.5]} 28. a4 {[%clk 0:01:00.9]} 28... Nc8 {[%clk 0:02:12]} 29.
c3 {[%clk 0:00:49.1]} 29... a5 {[%clk 0:02:09.3]} 30. Bc2 {[%clk 0:00:47.5]}
30... Nb6 {[%clk 0:02:04.3]} 31. Qf6 {[%clk 0:00:41.2]} 31... Nd5 {[%clk
0:02:01.5]} 32. Qg7 {[%clk 0:00:41.5]} 32... Ne3 {[%clk 0:01:54.4]} 33. Qf8
{[%clk 0:00:39]} 33... b6 {[%clk 0:01:39.5]} 34. Kb1 {[%clk 0:00:28.9]} 34...
Nc4 {[%clk 0:01:23.7]} 35. f4 {[%clk 0:00:18]} 35... Ne3 {[%clk 0:01:23.4]} 36.
Bb3 {[%clk 0:00:15.4]} 36... Ng2 {[%clk 0:01:17.5]} 37. Qa8 {[%clk 0:00:14.7]}
37... Qc8 {[%clk 0:01:12.8]} 38. Qa7+ {[%clk 0:00:14.9]} 38... Qb7 {[%clk
0:01:12.7]} 39. Qxb7+ {[%clk 0:00:15.1]} 39... Kxb7 {[%clk 0:01:12.9]} 40. f5
{[%clk 0:00:16]} 40... Nxh4 {[%clk 0:00:41]} 41. fxe6 {[%clk 0:00:15.1]} 41...
fxe6 {[%clk 0:00:40.3]} 42. Bxe6 {[%clk 0:00:15.4]} 42... Nf3 {[%clk 0:00:40.2]}
43. b4 {[%clk 0:00:08.3]} 43... Nxg5 {[%clk 0:00:28.1]} 44. Bd7 {[%clk
0:00:06.4]} 44... Nf3 {[%clk 0:00:27.1]} 45. e6 {[%clk 0:00:06.6]} 45... Kc7
{[%clk 0:00:27.2]} 46. Be8 {[%clk 0:00:06.4]} 46... Ne5 {[%clk 0:00:23]} 47. e7
{[%clk 0:00:06.5]} 47... Kd6 {[%clk 0:00:22.3]} 48. Bxg6 {[%clk 0:00:06.6]}
48... Kxe7 {[%clk 0:00:19.1]} 49. Bxh5 {[%clk 0:00:07]} 49... Kd6 {[%clk
0:00:19.3]} 50. bxa5 {[%clk 0:00:07.3]} 50... bxa5 {[%clk 0:00:19.5]} 51. Kc2
{[%clk 0:00:07.9]} 51... Kc5 {[%clk 0:00:19.6]} 52. Be2 {[%clk 0:00:07.3]} 52...
Nd7 {[%clk 0:00:18.7]} 53. Bd3 {[%clk 0:00:07.7]} 53... Nb6 {[%clk 0:00:19.1]}
54. Kb3 {[%clk 0:00:07.8]} 54... Kd6 {[%clk 0:00:19.5]} 55. Bc2 {[%clk
0:00:08.2]} 55... Ke5 {[%clk 0:00:18.1]} 56. Bd3 {[%clk 0:00:08.6]} 56... c5
{[%clk 0:00:18.3]} 57. Bc2 {[%clk 0:00:08.4]} 57... Kf4 {[%clk 0:00:15.2]} 58.
Bd3 {[%clk 0:00:06.8]} 58... Ke3 {[%clk 0:00:15.5]} 59. Bb5 {[%clk 0:00:07.4]}
59... Kd2 {[%clk 0:00:15.2]} 60. Ba6 {[%clk 0:00:07.9]} 60... Ke3 {[%clk
0:00:14.7]} 61. Bb5 {[%clk 0:00:08.5]} 61... Ke4 {[%clk 0:00:15]} 62. Ba6 {[%clk
0:00:09.1]} 62... Kd5 {[%clk 0:00:15.4]} 63. c4+ {[%clk 0:00:09]} 63... Kd4
{[%clk 0:00:15.4]} 64. Bb5 {[%clk 0:00:09.4]} 64... Kd3 {[%clk 0:00:15.3]} 65.
Ba6 {[%clk 0:00:09.2]} 65... Nd7 {[%clk 0:00:15.4]} 66. Bb5 {[%clk 0:00:09.5]}
66... Ne5 {[%clk 0:00:15.7]} 67. Ba6 {[%clk 0:00:09.8]} 67... Nf3 {[%clk
0:00:15.9]} 68. Bb5 {[%clk 0:00:10.2]} 68... Nd2+ {[%clk 0:00:16]} 69. Kb2
{[%clk 0:00:08]} 69... Kd4 {[%clk 0:00:15.6]} 70. Kc2 {[%clk 0:00:04.4]} 70...
Nxc4 {[%clk 0:00:15.4]} 71. Kb3 {[%clk 0:00:05.3]} 71... Nb6 {[%clk 0:00:15.1]}
72. Ba6 {[%clk 0:00:05.8]} 72... c4+ {[%clk 0:00:14.5]} 73. Kc2 {[%clk
0:00:06.3]} 73... Nxa4 {[%clk 0:00:14.4]} 74. Bb5 {[%clk 0:00:06.5]} 74... Nc5
{[%clk 0:00:14.4]} 75. Bc6 {[%clk 0:00:06.9]} 75... Na6 {[%clk 0:00:13.2]} 76.
Bb5 {[%clk 0:00:07.2]} 76... Nb4+ {[%clk 0:00:13.6]} 77. Kb2 {[%clk 0:00:07.8]}
77... c3+ {[%clk 0:00:13.3]} 78. Kb3 {[%clk 0:00:08.3]} 78... c2 {[%clk
0:00:13.4]} 79. Kb2 {[%clk 0:00:08.3]} 79... Ke3 {[%clk 0:00:12.5]} 80. Ba4
{[%clk 0:00:08.7]} 80... Kd2 {[%clk 0:00:11.9]} 81. Bxc2 {[%clk 0:00:09.1]}
81... Nxc2 {[%clk 0:00:12]} 82. Kb3 {[%clk 0:00:08.8]} 82... Nd4+ {[%clk
0:00:12.1]} 83. Ka4 {[%clk 0:00:07.1]} 83... Nc6 {[%clk 0:00:12.5]} 84. Kb5
{[%clk 0:00:07.6]} 84... Kc3 {[%clk 0:00:12.7]} 85. Kc5 {[%clk 0:00:08.1]} 85...
a4 {[%clk 0:00:12.7]} 0-1